fUST/lending_fUST_20241220
["ID","MTS","AMOUNT","RATE_DAILY","PERIOD"]
[346037704,1734649846468,-1197.88768747,0.0002232,2]
[346037705,1734649846477,-3000.0,0.0002232,2]
[346037706,1734649846487,-2019.589983,0.0002232,7]
[346037707,1734649846496,-2019.589983,0.0002232,7]
[346037708,1734649846506,-1055.209901,0.0002232,7]
[346037709,1734649846515,-1055.209901,0.0002232,7]
[346037711,1734649846524,-151.0,0.0002232,7]
[346037713,1734649846533,-151.0,0.0002232,7]
[346037715,1734649846542,-151.0,0.0002232,7]
[346037717,1734649846551,-935.939556,0.0002232,7]
[346037719,1734649846561,-935.939556,0.0002232,7]
[346037721,1734649846570,-399.452792,0.0002232,7]
[346037723,1734649846579,-151.0,0.0002232,7]
[346037725,1734649846588,-399.452792,0.0002232,7]
[346037727,1734649846598,-1405.824789,0.0002232,7]
[346037729,1734649846608,-151.0,0.0002232,7]
[346037731,1734649846617,-296.012728,0.0002232,7]
[346037733,1734649846626,-1405.824789,0.0002232,7]
[346037735,1734649846635,-151.0,0.0002232,7]
[346037737,1734649846645,-151.0,0.0002232,7]
[346037739,1734649846653,-586.082004,0.0002232,7]
[346037741,1734649846663,-586.082004,0.0002232,7]
[346037743,1734649846672,-3000.0,0.0002233,2]
[346037745,1734649846681,-3000.0,0.0002233,2]
[346037747,1734649846691,-3000.0,0.0002234,2]
[346037749,1734649846700,-3000.0,0.0002234,2]
[346037751,1734649846709,-1000.0,0.0002235,2]
[346037753,1734649846719,-94877.24694169,0.0002235,4]
[346038190,1734650265292,164.797629,0.00013973,2]
[346038191,1734650306020,151.69328586,0.00013699,2]
[346038192,1734650434682,159.767662,0.0002411,120]
[346038241,1734651032405,-271.065533,0.00019386,2]
[346038242,1734651032415,-1388.78719397,0.00020072,2]
[346038423,1734651038177,-11335.87095102,0.00020072,2]
[346038426,1734651038186,-167.3178,0.00020172,2]
[346038429,1734651038195,-5000.0,0.00020291,7]
[346038432,1734651038204,-645.9114144,0.00020386,2]
[346038435,1734651038213,-300.0,0.00020543,2]
[346038438,1734651038222,-4120.5214468,0.00020544,2]
[346038441,1734651038231,-13376.312163,0.00020963,2]
[346038444,1734651038240,-250.0,0.00021172,2]
[346038447,1734651038249,-618.015,0.0002123,2]
[346038449,1734651038258,-351.9620625,0.00021441,2]
[346038451,1734651038267,-165.092525,0.00021812,2]
[346038453,1734651038275,-228.57807455,0.00021817,2]
[346038455,1734651038285,-152.0,0.00021862,2]
[346038457,1734651038294,-500.0,0.00021917,6]
[346038459,1734651038303,-500.0,0.00021917,6]
[346038461,1734651038312,-500.0,0.00021917,6]
[346038463,1734651038321,-500.0,0.00021917,6]
[346038465,1734651038330,-502.23311551,0.00021917,6]
[346038467,1734651038339,-502.7251017,0.00021917,6]
[346038469,1734651038348,-537.91133373,0.00021917,6]
[346038471,1734651038358,-500.0,0.00021917,6]
[346038473,1734651038367,-500.0,0.00021917,6]
[346038475,1734651038376,-500.0,0.00021917,6]
[346038477,1734651038386,-549.3669085,0.00021917,6]
[346038479,1734651038395,-500.0,0.00021917,6]
[346038481,1734651038404,-500.0,0.00021917,6]
[346038483,1734651038417,-500.0,0.00021917,6]
[346038485,1734651038426,-500.0,0.00021917,6]
[346038487,1734651038435,-500.0,0.00021917,6]
[346038489,1734651038444,-500.0,0.00021917,6]
[346038491,1734651038453,-634.59,0.00021917,6]
[346038493,1734651038462,-500.0,0.00021917,6]
[346038495,1734651038471,-500.0,0.00021917,6]
[346038497,1734651038481,-500.0,0.00021917,6]
[346038499,1734651038490,-1281.85,0.00021917,6]
[346038501,1734651038499,-644.96,0.00021917,6]
[346038503,1734651038508,-500.0,0.00021917,6]
[346038505,1734651038518,-621.04,0.00021917,6]
[346038507,1734651038527,-954.94,0.00021917,6]
[346038509,1734651038536,-500.0,0.00021917,6]
[346038511,1734651038545,-500.0,0.00021917,6]
[346038513,1734651038555,-500.0,0.00021917,6]
[346038515,1734651038564,-500.0,0.00021917,6]
[346038517,1734651038573,-2788.47,0.00021917,6]
[346038519,1734651038582,-527.1179748,0.00021917,6]
[346038520,1734651038591,-667.81,0.00021917,6]
[346038523,1734651038601,-500.0,0.00021917,6]
[346038524,1734651038610,-500.0,0.00021917,6]
[346038527,1734651038619,-500.0,0.00021917,6]
[346038529,1734651038630,-500.0,0.00021917,6]
[346038531,1734651038642,-500.0,0.00021917,6]
[346038533,1734651038651,-500.0,0.00021917,6]
[346038534,1734651038660,-500.0,0.00021917,6]
[346038536,1734651038669,-500.0,0.00021917,6]
[346038538,1734651038679,-500.0,0.00021917,6]
[346038540,1734651038688,-1341.1,0.00021917,6]
[346038542,1734651038698,-500.0,0.00021917,6]
[346038545,1734651038707,-500.0,0.00021917,6]
[346038546,1734651038716,-2008.08,0.00021917,6]
[346038548,1734651038725,-1529.59,0.00021917,6]
[346038550,1734651038734,-501.90828634,0.00021917,6]
[346038552,1734651038743,-2168.85,0.00021917,6]
[346038555,1734651038753,-500.0,0.00021917,6]
[346038557,1734651038763,-500.0,0.00021917,6]
[346038559,1734651038775,-500.0,0.00021917,6]
[346038561,1734651038785,-500.0,0.00021917,6]
[346038563,1734651038794,-587.47,0.00021917,6]
[346038565,1734651038804,-1795.7,0.00021917,6]
[346038567,1734651038813,-565.85,0.00021917,6]
[346038569,1734651038822,-500.0,0.00021917,6]
[346038571,1734651038831,-1188.26,0.00021917,6]
[346038573,1734651038839,-240.26224905,0.00021917,6]
[346038596,1734651039041,-1543.12,0.00021917,6]
[346038598,1734651039051,-500.0,0.00021917,6]
[346038600,1734651039061,-500.0,0.00021917,6]
[346038602,1734651039070,-1823.98,0.00021917,6]
[346038604,1734651039079,-561.53,0.00021917,6]
[346038606,1734651039088,-1226.23,0.00021917,6]
[346038608,1734651039097,-605.07365702,0.00021917,6]
[346038610,1734651039106,-546.88,0.00021917,6]
[346038612,1734651039115,-812.72,0.00021917,6]
[346038614,1734651039124,-10929.63,0.00021917,6]
[346038616,1734651039135,-1769.96,0.00021917,6]
[346038618,1734651039144,-500.0,0.00021917,6]
[346038620,1734651039153,-500.0,0.00021917,6]
[346038622,1734651039163,-500.0,0.00021917,6]
[346038624,1734651039172,-500.0,0.00021917,6]
[346038626,1734651039182,-500.0,0.00021917,6]
[346038628,1734651039191,-500.0,0.00021917,6]
[346038630,1734651039200,-500.0,0.00021917,6]
[346038632,1734651039210,-861.9,0.00021917,6]
[346038634,1734651039219,-509.21476243,0.00021917,6]
[346038636,1734651039227,-25699.56,0.00021917,6]
[346038638,1734651039236,-500.0,0.00021917,6]
[346038640,1734651039245,-4937.13,0.00021917,6]
[346038642,1734651039254,-613.64,0.00021917,6]
[346038644,1734651039264,-500.0,0.00021917,6]
[346038646,1734651039273,-835.78,0.00021917,6]
[346038648,1734651039282,-3085.4,0.00021917,6]
[346038650,1734651039291,-11327.59,0.00021917,6]
[346038652,1734651039301,-500.0,0.00021917,6]
[346038654,1734651039310,-500.0,0.00021917,6]
[346038656,1734651039319,-13588.9,0.00021917,6]
[346038658,1734651039328,-579.79,0.00021917,6]
[346038660,1734651039337,-500.0,0.00021917,6]
[346038662,1734651039347,-774.64,0.00021917,6]
[346038664,1734651039356,-3298.09,0.00021917,6]
[346038666,1734651039367,-500.0,0.00021917,6]
[346038668,1734651039376,-506.20197464,0.00021917,6]
[346038670,1734651039387,-500.0,0.00021917,6]
[346038672,1734651039396,-500.4367252,0.00021917,6]
[346038674,1734651039405,-500.0,0.00021917,6]
[346038676,1734651039415,-6542.67,0.00021917,6]
[346038678,1734651039424,-500.0,0.00021917,6]
[346038680,1734651039433,-500.0,0.00021917,6]
[346038682,1734651039442,-500.0,0.00021917,6]
[346038685,1734651039452,-1142.69,0.00021917,6]
[346038687,1734651039462,-1916.13,0.00021917,2]
[346038689,1734651039471,-500.0,0.00021917,6]
[346038691,1734651039480,-500.0,0.00021917,6]
[346038693,1734651039489,-543.06,0.00021917,6]
[346038695,1734651039498,-500.0,0.00021917,6]
[346038697,1734651039508,-500.0,0.00021917,6]
[346038698,1734651039517,-2954.39,0.00021917,6]
[346038700,1734651039526,-1204.39,0.00021917,6]
[346038702,1734651039535,-500.0,0.00021917,6]
[346038704,1734651039545,-500.0,0.00021917,6]
[346038706,1734651039555,-6868.12,0.00021917,6]
[346038709,1734651039565,-500.0,0.00021917,6]
[346038711,1734651039574,-4141.53,0.00021917,6]
[346038713,1734651039584,-3130.75,0.00021917,6]
[346038714,1734651039594,-659.54,0.00021917,6]
[346038716,1734651039604,-500.0,0.00021917,6]
[346038719,1734651039613,-261.42391862,0.00021917,6]
[346038721,1734651039623,-500.0,0.00021917,6]
[346038722,1734651039633,-1228.57,0.00021917,6]
[346038725,1734651039643,-1460.26,0.00021917,6]
[346038727,1734651039652,-585.12,0.00021917,6]
[346038729,1734651039661,-500.0,0.00021917,6]
[346038731,1734651039671,-2439.8,0.00021917,6]
[346038733,1734651039680,-500.0,0.00021917,6]
[346038735,1734651039689,-2653.23,0.00021917,6]
[346038738,1734651039698,-2653.23,0.00021917,6]
[346038740,1734651039707,-500.4662946,0.00021917,6]
[346038742,1734651039716,-2653.23,0.00021917,6]
[346038744,1734651039725,-2653.23,0.00021917,6]
[346038746,1734651039735,-2653.23,0.00021917,6]
[346038748,1734651039744,-2653.23,0.00021917,6]
[346038750,1734651039754,-2653.23,0.00021917,6]
[346038752,1734651039763,-500.0,0.00021917,6]
[346038753,1734651039775,-7321.59,0.00021917,6]
[346038755,1734651039785,-1355.47,0.00021917,6]
[346038758,1734651039795,-1434.04,0.00021917,6]
[346038760,1734651039806,-659.9,0.00021917,6]
[346038762,1734651039816,-500.0,0.00021917,6]
[346038764,1734651039825,-527.60495,0.00021917,2]
[346038766,1734651039834,-766.21,0.00021917,6]
[346038767,1734651039843,-3055.25,0.00021917,6]
[346038769,1734651039852,-527.60495,0.00021917,2]
[346038772,1734651039863,-500.0,0.00021917,6]
[346038774,1734651039872,-500.0,0.00021917,2]
[346038776,1734651039881,-500.0,0.00021917,6]
[346038778,1734651039891,-500.0,0.00021917,6]
[346038780,1734651039901,-452.18245586,0.00021917,6]
[346038782,1734651039910,-264.293832,0.00021917,2]
[346038784,1734651039919,-2427.32,0.00021917,6]
[346038786,1734651039928,-670.78,0.00021917,6]
[346038787,1734651039937,-2427.32,0.00021917,6]
[346038788,1734651039946,-500.0,0.00021917,2]
[346038789,1734651039955,-2427.32,0.00021917,6]
[346038790,1734651039964,-2427.32,0.00021917,6]
[346038791,1734651039973,-2427.32,0.00021917,6]
[346038792,1734651039983,-500.0,0.00021917,6]
[346038793,1734651039992,-2427.32,0.00021917,6]
[346038794,1734651040001,-2427.32,0.00021917,6]
[346038795,1734651040011,-507.39066107,0.00021917,6]
[346038796,1734651040020,-500.0,0.00021917,2]
[346038797,1734651040029,-521.81531752,0.00021917,6]
[346038798,1734651040038,-500.0,0.00021917,2]
[346038799,1734651040047,-3067.17,0.00021917,6]
[346038800,1734651040056,-532.08,0.00021917,6]
[346038801,1734651040065,-3144.08,0.00021917,6]
[346038802,1734651040074,-1540.08,0.00021917,6]
[346038804,1734651040084,-500.0,0.00021917,6]
[346038806,1734651040093,-870.24,0.00021917,6]
[346038808,1734651040102,-600.355819,0.00021918,2]
[346038810,1734651040111,-600.355819,0.00021918,2]
[346038812,1734651040121,-153.0,0.00021968,2]
[346038814,1734651040130,-153.0,0.00021968,2]
[346038816,1734651040140,-153.0,0.00021968,2]
[346038818,1734651040149,-153.2604004,0.00021968,2]
[346038820,1734651040158,-213.9640091,0.00021968,2]
[346038822,1734651040169,-2653.23,0.00021998,6]
[346038824,1734651040178,-2653.23,0.00021998,6]
[346038826,1734651040187,-2427.32,0.00021998,6]
[346038828,1734651040196,-2427.32,0.00021998,6]
[346038830,1734651040205,-748.1,0.00021999,6]
[346038832,1734651040215,-500.0,0.00021999,6]
[346038834,1734651040224,-500.0,0.00021999,2]
[346038836,1734651040233,-500.0,0.00021999,2]
[346038838,1734651040243,-341.5149281,0.00021999,6]
[346038840,1734651040252,-1538.58,0.00021999,6]
[346038842,1734651040261,-500.0,0.00021999,6]
[346038844,1734651040270,-500.0,0.00021999,6]
[346038847,1734651040280,-500.0,0.00021999,6]
[346038849,1734651040289,-500.0,0.00021999,6]
[346038850,1734651040298,-500.0,0.00021999,6]
[346038853,1734651040307,-500.0,0.00021999,6]
[346038854,1734651040316,-500.0,0.00021999,6]
[346038856,1734651040325,-503.76996881,0.00021999,6]
[346038859,1734651040334,-500.0,0.00021999,6]
[346038862,1734651040344,-500.0,0.00021999,6]
[346038864,1734651040353,-500.0,0.00021999,6]
[346038866,1734651040361,-502.59854135,0.00021999,6]
[346038868,1734651040371,-500.0,0.00021999,6]
[346038870,1734651040381,-745.76,0.00021999,6]
[346038872,1734651040390,-500.0,0.00021999,6]
[346038874,1734651040399,-500.0,0.00021999,6]
[346038875,1734651040408,-500.0,0.00021999,6]
[346038877,1734651040418,-185.3,0.00021999,6]
[346038880,1734651040428,-500.0,0.00021999,6]
[346038882,1734651040437,-500.0,0.00021999,6]
[346038884,1734651040446,-500.0,0.00021999,6]
[346038886,1734651040455,-639.16735516,0.00021999,6]
[346038888,1734651040464,-1417.52,0.00021999,6]
[346038890,1734651040474,-519.34972177,0.00021999,6]
[346038892,1734651040483,-500.0,0.00021999,6]
[346038894,1734651040492,-577.07,0.00021999,6]
[346038896,1734651040500,-500.0,0.00021999,6]
[346038898,1734651040510,-5737.87,0.00021999,2]
[346038900,1734651040522,-1478.84,0.00021999,6]
[346038903,1734651040537,-900.14,0.00021999,6]
[346038905,1734651040551,-1139.41,0.00021999,6]
[346038908,1734651040564,-500.0,0.00021999,6]
[346038910,1734651040574,-579.83511989,0.00021999,6]
[346038912,1734651040588,-2057.41,0.00021999,6]
[346038915,1734651040601,-628.67,0.00021999,6]
[346038917,1734651040615,-1203.83,0.00021999,6]
[346038920,1734651040629,-500.0,0.00021999,6]
[346038922,1734651040646,-1001.7936302,0.00021999,6]
[346038924,1734651040661,-500.0,0.00021999,6]
[346038927,1734651040675,-1421.88,0.00021999,6]
[346038929,1734651040687,-500.0,0.00021999,6]
[346038932,1734651040700,-500.0,0.00021999,6]
[346038934,1734651040711,-672.92,0.00021999,6]
[346038936,1734651040724,-598.74,0.00021999,6]
[346038939,1734651040737,-808.52,0.00021999,6]
[346038941,1734651040749,-500.0,0.00021999,6]
[346038943,1734651040759,-500.0,0.00021999,6]
[346038945,1734651040772,-1451.7,0.00021999,6]
[346038947,1734651040785,-1617.89,0.00021999,6]
[346038950,1734651040797,-404.80478508,0.00021999,6]
[346038952,1734651040809,-503.25799242,0.00021999,6]
[346038955,1734651040824,-596.28,0.00021999,6]
[346038957,1734651040837,-500.0,0.00021999,6]
[346038960,1734651040851,-500.0,0.00021999,6]
[346038962,1734651040864,-500.0,0.00021999,6]
[346038964,1734651040875,-520.42676891,0.00021999,6]
[346038967,1734651040889,-500.0,0.00021999,6]
[346038969,1734651040900,-500.0,0.00021999,6]
[346038971,1734651040911,-2698.72,0.00021999,6]
[346038974,1734651040923,-151.0,0.00021999,7]
[346038976,1734651040937,-500.0,0.00021999,6]
[346038978,1734651040950,-501.56258913,0.00021999,6]
[346038980,1734651040960,-501.86840288,0.00021999,6]
[346038983,1734651040972,-2442.14,0.00021999,6]
[346038985,1734651040983,-151.0,0.00021999,7]
[346038987,1734651040996,-1204.33,0.00021999,6]
[346038990,1734651041007,-500.0,0.00021999,6]
[346038992,1734651041018,-151.0,0.00021999,7]
[346038994,1734651041028,-500.0,0.00021999,6]
[346038996,1734651041039,-500.0,0.00021999,6]
[346038998,1734651041050,-500.0,0.00021999,6]
[346039001,1734651041061,-777.27,0.00021999,6]
[346039003,1734651041072,-500.0,0.00021999,6]
[346039005,1734651041083,-500.0,0.00021999,6]
[346039007,1734651041094,-500.0,0.00021999,6]
[346039010,1734651041105,-374.375823,0.00021999,7]
[346039012,1734651041116,-500.0,0.00021999,6]
[346039014,1734651041130,-374.375823,0.00021999,7]
[346039016,1734651041141,-656.53,0.00021999,6]
[346039019,1734651041152,-500.0,0.00021999,6]
[346039021,1734651041163,-500.0,0.00021999,6]
[346039023,1734651041174,-234.432802,0.00021999,7]
[346039025,1734651041185,-234.432802,0.00021999,7]
[346039027,1734651041196,-500.0,0.00021999,6]
[346039029,1734651041207,-500.0,0.00021999,6]
[346039032,1734651041219,-234.432802,0.00021999,7]
[346039034,1734651041230,-234.432802,0.00021999,7]
[346039036,1734651041241,-455.50563,0.00021999,7]
[346039038,1734651041252,-455.50563,0.00021999,7]
[346039040,1734651041263,-500.0,0.00021999,6]
[346039042,1734651041274,-500.0,0.00021999,2]
[346039044,1734651041285,-500.0,0.00021999,6]
[346039046,1734651041296,-500.0,0.00021999,6]
[346039048,1734651041308,-500.0,0.00021999,6]
[346039051,1734651041319,-500.0,0.00021999,6]
[346039053,1734651041330,-500.0,0.00021999,6]
[346039055,1734651041341,-500.0,0.00021999,6]
[346039057,1734651041352,-5819.39,0.00021999,6]
[346039060,1734651041364,-500.0,0.00021999,6]
[346039062,1734651041375,-503.16681086,0.00021999,6]
[346039064,1734651041389,-261.0839029,0.00021999,6]
[346039066,1734651041401,-4876.46,0.00021999,6]
[346039068,1734651041412,-238.495584,0.00021999,7]
[346039071,1734651041423,-238.495584,0.00021999,7]
[346039073,1734651041435,-500.0,0.00021999,6]
[346039075,1734651041445,-500.0,0.00021999,6]
[346039077,1734651041456,-719.38,0.00021999,6]
[346039080,1734651041467,-238.495584,0.00021999,7]
[346039082,1734651041479,-238.495584,0.00021999,7]
[346039084,1734651041491,-151.24057,0.00021999,7]
[346039086,1734651041501,-2891.38,0.00021999,6]
[346039089,1734651041512,-707.88,0.00021999,6]
[346039091,1734651041523,-454.88372176,0.00021999,6]
[346039093,1734651041535,-600.97,0.00021999,6]
[346039095,1734651041546,-262.028789,0.00021999,7]
[346039097,1734651041557,-262.028789,0.00021999,7]
[346039099,1734651041568,-421.61921042,0.00021999,6]
[346039287,1734651043449,-151.0,0.00021917,2]
[346039289,1734651043459,-1082.37078958,0.00021999,6]
[346039291,1734651043469,-500.0,0.00021999,6]
[346039293,1734651043478,-262.028789,0.00021999,7]
[346039295,1734651043488,-262.028789,0.00021999,7]
[346039297,1734651043497,-159.781117,0.00021999,7]
[346039299,1734651043507,-159.781117,0.00021999,7]
[346039301,1734651043516,-159.781117,0.00021999,7]
[346039303,1734651043525,-500.0,0.00021999,6]
[346039305,1734651043536,-159.781117,0.00021999,7]
[346039307,1734651043545,-159.781117,0.00021999,7]
[346039309,1734651043554,-159.781117,0.00021999,7]
[346039311,1734651043564,-500.0,0.00021999,6]
[346039313,1734651043573,-500.0,0.00021999,6]
[346039315,1734651043582,-500.0,0.00021999,6]
[346039317,1734651043592,-500.0,0.00021999,6]
[346039319,1734651043601,-500.0,0.00021999,6]
[346039321,1734651043610,-151.0,0.00021999,7]
[346039323,1734651043619,-151.0,0.00021999,7]
[346039325,1734651043629,-500.0,0.00021999,6]
[346039327,1734651043640,-500.0,0.00021999,6]
[346039329,1734651043649,-500.0,0.00021999,6]
[346039331,1734651043658,-1157.87,0.00021999,6]
[346039333,1734651043667,-155.49082834,0.00021999,7]
[346039335,1734651043677,-500.0,0.00021999,6]
[346039337,1734651043686,-1320.13,0.00021999,6]
[346039339,1734651043695,-596.83,0.00021999,6]
[346039341,1734651043705,-579.56410368,0.00021999,6]
[346039344,1734651043717,-433.91589632,0.00021999,6]
[346039345,1734651043727,-320.307369,0.00021999,7]
[346039347,1734651043736,-320.307369,0.00021999,7]
[346039350,1734651043746,-478.18016376,0.00021999,6]
[346039357,1734651043806,-20.48621739,0.00021999,6]
[346039359,1734651043815,-320.307369,0.00021999,7]
[346039361,1734651043824,-500.0,0.00021999,6]
[346039362,1734651043833,-320.307369,0.00021999,7]
[346039365,1734651043843,-320.307369,0.00021999,7]
[346039366,1734651043852,-320.307369,0.00021999,7]
[346039368,1734651043861,-500.0,0.00021999,6]
[346039370,1734651043870,-5011.65581622,0.00021999,2]
[346039621,1734651046225,-500.0,0.00021917,6]
[346039623,1734651046236,-4673.28,0.00021917,6]
[346039625,1734651046246,-500.0,0.00021917,6]
[346039627,1734651046256,-1816.65418378,0.00021999,2]
[346039629,1734651046267,-500.0,0.00021999,6]
[346039631,1734651046276,-500.0,0.00021999,6]
[346039633,1734651046286,-500.0,0.00021999,6]
[346039635,1734651046296,-501.10789209,0.00021999,6]
[346039637,1734651046305,-501.69414364,0.00021999,6]
[346039639,1734651046316,-2696.96,0.00021999,6]
[346039642,1734651046326,-500.0,0.00021999,6]
[346039643,1734651046336,-500.0,0.00021999,6]
[346039644,1734651046346,-2281.25,0.00021999,6]
[346039645,1734651046356,-151.0,0.00021999,7]
[346039646,1734651046366,-151.0,0.00021999,7]
[346039647,1734651046376,-151.0,0.00021999,7]
[346039648,1734651046390,-151.0,0.00021999,7]
[346039649,1734651046401,-500.0,0.00021999,6]
[346039650,1734651046411,-500.0,0.00021999,6]
[346039651,1734651046420,-185.05535549,0.00021999,7]
[346039652,1734651046433,-517.85703951,0.00021999,7]
[346039653,1734651046442,-702.912395,0.00021999,7]
[346039654,1734651046452,-702.912395,0.00021999,7]
[346039656,1734651046462,-702.912395,0.00021999,7]
[346039658,1734651046472,-702.912395,0.00021999,7]
[346039660,1734651046482,-1291.97,0.00021999,6]
[346039662,1734651046491,-702.912395,0.00021999,7]
[346039664,1734651046501,-500.0,0.00021999,6]
[346039666,1734651046511,-500.0,0.00021999,6]
[346039668,1734651046521,-500.0,0.00021999,6]
[346039670,1734651046530,-500.0,0.00021999,6]
[346039672,1734651046540,-500.0,0.00021999,6]
[346039674,1734651046550,-1009.794991,0.00021999,7]
[346039676,1734651046560,-1009.794991,0.00021999,7]
[346039678,1734651046569,-1009.794991,0.00021999,7]
[346039680,1734651046579,-151.0,0.00021999,7]
[346039682,1734651046589,-1009.794991,0.00021999,7]
[346039684,1734651046599,-151.0,0.00021999,7]
[346039686,1734651046609,-151.0,0.00021999,7]
[346039688,1734651046618,-151.0,0.00021999,7]
[346039690,1734651046629,-525.18187025,0.00021999,6]
[346039692,1734651046643,-1820.99,0.00021999,6]
[346039694,1734651046653,-1009.794991,0.00021999,7]
[346039696,1734651046663,-209.331956,0.00021999,7]
[346039699,1734651046672,-1009.794991,0.00021999,7]
[346039701,1734651046682,-209.331956,0.00021999,7]
[346039703,1734651046691,-1009.794991,0.00021999,7]
[346039705,1734651046701,-151.0,0.00021999,7]
[346039707,1734651046710,-209.331956,0.00021999,7]
[346039709,1734651046721,-1009.794991,0.00021999,7]
[346039711,1734651046731,-151.0,0.00021999,7]
[346039713,1734651046740,-209.331956,0.00021999,7]
[346039715,1734651046750,-151.0,0.00021999,7]
[346039716,1734651046760,-151.0,0.00021999,7]
[346039719,1734651046770,-209.331956,0.00021999,7]
[346039721,1734651046784,-209.331956,0.00021999,7]
[346039723,1734651046794,-209.331956,0.00021999,7]
[346039725,1734651046804,-2217.21,0.00021999,6]
[346039727,1734651046814,-209.331956,0.00021999,7]
[346039729,1734651046825,-1375.48,0.00021999,6]
[346039731,1734651046835,-18.08309156,0.00021999,7]
[346039733,1734651046849,-132.91690844,0.00021999,7]
[346039735,1734651046860,-151.0,0.00021999,7]
[346039737,1734651046871,-151.0,0.00021999,7]
[346039739,1734651046881,-151.0,0.00021999,7]
[346039741,1734651046896,-500.0,0.00021999,6]
[346039743,1734651046906,-502.92477342,0.00021999,6]
[346039745,1734651046916,-338.85831815,0.00021999,6]
[346040461,1734651175487,164.697738,0.00013973,2]
[346040462,1734651250971,3011.011,0.00025,120]
[346040464,1734652099445,164.344698,0.00013973,2]
[346040516,1734652232613,-213.957472,0.0002063,2]
[346040518,1734652232622,-300.0,0.00020761,2]
[346040520,1734652232632,-300.0,0.00020761,2]
[346040522,1734652232640,-241.412528,0.00020762,2]
[346041022,1734652243408,-903.1292698,0.00020674,2]
[346041023,1734652243420,-101.57413496,0.00020762,2]
[346041036,1734652891252,160.0,0.00024508,120]
[346041038,1734653036019,165.030699,0.00013973,2]
[346041039,1734653191309,160.0,0.00024438,120]
[346041106,1734653432874,-1804.84071895,0.00018728,2]
[346041110,1734653432899,-2222.53697135,0.00018728,2]
[346041112,1734653432908,-180.21521658,0.00018962,2]
[346041114,1734653432918,-687.1690788,0.00019062,2]
[346041116,1734653432927,-154.95351395,0.00019062,2]
[346041118,1734653432938,-182.3,0.00019072,2]
[346041120,1734653432947,-300.0,0.00019081,2]
[346041122,1734653432957,-12772.91505032,0.00019082,2]
[346041384,1734653438549,-3185.1,0.00019082,2]
[346041391,1734653438603,-5462.37874068,0.00019082,2]
[346041393,1734653438613,-150.087111,0.000195,2]
[346041395,1734653438622,-152.0,0.00019803,2]
[346041398,1734653438631,-511.90341844,0.000199,2]
[346041400,1734653438640,-33396.0,0.0002,2]
[346041401,1734653438650,-1405.63733641,0.0002,2]
[346041404,1734653438659,-714.32205668,0.00020191,2]
[346041406,1734653438668,-9246.7371501,0.00020288,2]
[346041408,1734653438677,-3422.06290821,0.00020291,7]
[346041410,1734653438686,-150.0,0.000205,2]
[346041412,1734653438695,-351.9620625,0.00020541,2]
[346041414,1734653438705,-703.924125,0.000206,2]
[346041416,1734653438714,-602.0298108,0.00020652,2]
[346041417,1734653438724,-714.32205664,0.00020658,2]
[346041420,1734653438734,-351.9620625,0.000207,2]
[346041422,1734653438744,-175.703,0.00020925,2]
[346041424,1734653438753,-420.0,0.00020989,2]
[346041427,1734653438762,-714.32205664,0.00021125,2]
[346041428,1734653438774,-162.724558,0.00021131,2]